[Event "55th Rubinstein Memorial-A 2019"]
[Site "Polanica-Zdroj"]
[Date "2019.08.22"]
[Round "6.1"]
[White "Grabarczyk, Miroslaw"]
[Black "Warakomski, Tomasz"]
[Result "0-1"]
[ECO "D14"]
[WhiteElo "2362"]
[BlackElo "2497"]
[Annotator "ChessBase"]
[PlyCount "149"]
[EventDate "2019.08.17"]
[EventType "swiss"]
[EventCountry "POL"]
[SourceTitle "playchess.com"]
[Source "ChessBase"]
[SourceQuality "1"]
[TimeControl "40/5400+30:1800+30"]

1. d4 {[%emt 0:00:00]} d5 {[%emt 0:04:34]} 2. c4 {[%emt 0:00:00]} c6 {[%emt 0:00:04]} 3. cxd5 {[%emt 0:01:16]} cxd5 {[%emt 0:00:08]} 4. Nc3 {[%emt 0:00:05]} Nf6 {[%emt 0:00:37]} 5. Nf3 {[%emt 0:00:31]} Nc6 {[%emt 0:00:06]} 6. Bf4 {[%emt 0:00:27]} Bf5 {[%emt 0:00:06]} 7. e3 {[%emt 0:00:22]} e6 {[%emt 0:00:05]} 8. Bd3 {[%emt 0:00:19]} Bxd3 {[%emt 0:00:06]} 9. Qxd3 {[%emt 0:00:06]} Bd6 {[%emt 0:00:05]} 10. Bxd6 {[%emt 0:00:11]} Qxd6 {[%emt 0:00:03]} 11. O-O {[%emt 0:00:24]} O-O {[%emt 0:00:05]} 12. Rfc1 {[%emt 0:00:34]} Rfc8 {[%emt 0:00:23]} 13. a3 {[%emt 0:00:54]} a6 {[%emt 0:02:54]} 14. Rc2 {[%emt 0:00:38]} Rc7 {[%emt 0:00:36]} 15. Rac1 {[%emt 0:00:43]} Rac8 {[%emt 0:00:05]} 16. Na4 {[%emt 0:02:33]} Nd7 {[%emt 0:24:38]} 17. b4 {[%emt 0:13:09]} a5 {[%emt 0:06:30]} 18. b5 {[%emt 0:08:06]} Na7 {[%emt 0:07:04]} 19. Ne1 {[%emt 0:00:09]} Rxc2 {[%emt 0:02:51]} 20. Rxc2 {[%emt 0:00:07]} Rxc2 {[%emt 0:00:04]} 21. Nxc2 {[%emt 0:00:04]} Qc7 {[%emt 0:01:54]} 22. h3 {[%emt 0:05:56]} g6 {[%emt 0:01:16]} 23. Qb3 {[%emt 0:03:26]} b6 {[%emt 0:07:59]} 24. Nc3 {[%emt 0:07:11]} Nf6 {[%emt 0:00:03]} 25. Ne1 {[%emt 0:03:31]} Nc8 {[%emt 0:06:34]} 26. Nd3 {[%emt 0:01:49]} Ne4 {[%emt 0:01:00]} 27. Nxe4 {[%emt 0:15:14]} dxe4 {[%emt 0:00:05]} 28. Ne5 {[%emt 0:00:05]} Qc1+ {[%emt 0:02:54]} 29. Kh2 {[%emt 0:00:06]} Nd6 {[%emt 0:02:59]} 30. d5 {[%emt 0:00:22]} exd5 {[%emt 0:02:20]} 31. Qxd5 {[%emt 0:02:24]} Qxa3 {[%emt 0:00:11]} 32. Nd7 {[%emt 0:07:40]} Ne8 {[%emt 0:00:44]} 33. g3 {[%emt 0:00:24]} Qd6 {[%emt 0:01:46]} 34. Qb7 {[%emt 0:00:24]} Qe6 {[%emt 0:13:19]} 35. Nxb6 {[%emt 0:16:45]} Qf5 {[%emt 0:00:05]} 36. Kg2 {[%emt 0:00:37]} Qxb5 {[%emt 0:00:05]} 37. Qxe4 {[%emt 0:00:09]} Nc7 {[%emt 0:01:19]} 38. Qb7 {[%emt 0:06:15]} Ne6 {[%emt 0:03:33]} 39. Qa8+ {[%emt 0:00:07]} Kg7 {[%emt 0:00:47]} 40. Nd5 {[%emt 0:00:00]} Nc5 {[%emt 0:00:00]} 41. Qc8 {[%emt 0:15:47]} Ne4 {[%emt 0:14:03]} 42. Nc3 {[%emt 0:04:47]} Qc5 {[%emt 0:00:27]} 43. Qxc5 {[%emt 0:00:21]} Nxc5 {[%emt 0:00:04]} 44. e4 {[%emt 0:01:05]} f6 {[%emt 0:06:03]} 45. Kf3 {[%emt 0:02:04]} a4 {[%emt 0:01:26]} 46. Nb5 {[%emt 0:01:25]} Nb7 {[%emt 0:05:55]} 47. Ke3 {[%emt 0:03:04]} Nd6 {[%emt 0:00:08]} 48. Na3 {[%emt 0:01:04]} Kf7 {[%emt 0:00:36]} 49. Kd4 {[%emt 0:02:28]} Ke6 {[%emt 0:00:07]} 50. Nc2 {[%emt 0:02:56]} f5 {[%emt 0:01:23]} 51. exf5+ {[%emt 0:00:22]} Nxf5+ {[%emt 0:00:07]} 52. Ke4 {[%emt 0:01:15]} Nd6+ {[%emt 0:01:08]} 53. Kd4 {[%emt 0:00:10]} Kf6 {[%emt 0:03:08]} 54. Kd5 {[%emt 0:01:48]} Nb5 {[%emt 0:00:42]} 55. Kc4 {[%emt 0:00:19]} Nc7 {[%emt 0:00:01]} 56. Ne3 {[%emt 0:01:14]} Ke5 {[%emt 0:02:34]} 57. Ng4+ {[%emt 0:00:58]} Kf5 {[%emt 0:00:01]} 58. f3 {[%emt 0:00:16]} Ne6 {[%emt 0:01:51]} 59. Ne3+ {[%emt 0:00:16]} Kf6 {[%emt 0:01:51]} 60. Ng4+ {[%emt 0:00:34]} Ke7 {[%emt 0:03:02]} 61. f4 {[%emt 0:01:00]} Ng7 {[%emt 0:00:40]} 62. Ne3 {[%emt 0:00:27]} Nh5 {[%emt 0:02:30]} 63. f5 {[%emt 0:00:07]} g5 {[%emt 0:00:10]} 64. h4 {[%emt 0:00:21]} Kf6 {[%emt 0:01:07]} 65. hxg5+ {[%emt 0:03:12]} Kxg5 {[%emt 0:00:04]} 66. f6 {[%emt 0:01:56]} Nxf6 {[%emt 0:00:25]} 67. Kb4 {[%emt 0:00:39]} Ne4 {[%emt 0:00:08]} 68. Kxa4 {[%emt 0:00:23]} Nxg3 {[%emt 0:00:06]} 69. Kb3 {[%emt 0:00:04]} h5 {[%emt 0:00:11]} 70. Ng2 {[%emt 0:00:05]} Kg4 {[%emt 0:01:38]} 71. Kc3 {[%emt 0:00:09]} Nf5 {[%emt 0:00:06]} 72. Kd3 {[%emt 0:00:45]} Kg3 {[%emt 0:00:12]} 73. Ne1 {[%emt 0:00:13]} h4 {[%emt 0:00:53]} 74. Ke4 {[%emt 0:00:10]} Nd4 {[%emt 0:00:56]} 75. Kxd4 0-1

[Event "55th Rubinstein Memorial-A 2019"]
[Site "Polanica-Zdroj"]
[Date "2019.08.22"]
[Round "6.2"]
[White "Marszalek, Maciej"]
[Black "Cukrowski, Filip"]
[Result "1-0"]
[ECO "E06"]
[WhiteElo "2295"]
[BlackElo "2424"]
[Annotator "NA"]
[PlyCount "117"]
[EventDate "2019.08.17"]
[EventType "swiss"]
[EventCountry "POL"]
[SourceTitle "playchess.com"]
[Source "ChessBase"]
[SourceQuality "1"]
[TimeControl "40/5400+30:1800+30"]

1. d4 {[%emt 0:00:00]} Nf6 {[%emt 0:04:15]} 2. c4 {[%emt 0:00:00]} e6 {[%emt 0:00:07]} 3. g3 {[%emt 0:00:07]} d5 {[%emt 0:00:46]} 4. Nf3 {[%emt 0:00:07]} Be7 {[%emt 0:00:15]} 5. Bg2 {[%emt 0:00:08]} O-O {[%emt 0:02:15]} 6. O-O {[%emt 0:00:11]} dxc4 {[%emt 0:07:52]} 7. Qc2 {[%emt 0:01:51]} a6 {[%emt 0:00:06]} 8. a4 {[%emt 0:00:18]} Bd7 {[%emt 0:05:04]} 9. Qxc4 {[%emt 0:01:45]} Bc6 {[%emt 0:00:08]} 10. Bf4 {[%emt 0:00:39]} Nbd7 {[%emt 0:08:58]} 11. Nc3 {[%emt 0:04:01]} Nd5 {[%emt 0:01:30]} 12. Nxd5 {[%emt 0:00:59]} Bxd5 {[%emt 0:18:25]} 13. Qc2 {[%emt 0:28:47]} Bc6 {[%emt 0:23:07]} 14. e4 {[%emt 0:03:05]} Nf6 {[%emt 0:07:34]} 15. Rfe1 {[%emt 0:07:28]} Nh5 {[%emt 0:00:23]} 16. Bd2 {[%emt 0:13:47]} f5 {[%emt 0:01:07]} 17. d5 {[%emt 0:05:19]} fxe4 {[%emt 0:02:31]} 18. dxc6 {[%emt 0:01:28]} exf3 {[%emt 0:00:05]} 19. cxb7 {[%emt 0:00:58]} Rb8 {[%emt 0:00:20]} 20. Bh3 {[%emt 0:00:43]} Rxb7 {[%emt 0:01:37]} 21. Bxe6+ {[%emt 0:00:43]} Kh8 {[%emt 0:00:08]} 22. Bc3 {[%emt 0:02:46]} Bf6 {[%emt 0:02:36]} 23. Rad1 {[%emt 0:00:50]} Qb8 {[%emt 0:00:07]} 24. Rd5 {[%emt 0:03:45]} g6 {[%emt 0:02:55]} 25. Red1 {[%emt 0:06:07]} c6 {[%emt 0:01:22]} 26. R5d3 {[%emt 0:03:13]} Re7 {[%emt 0:01:19]} 27. Bg4 {[%emt 0:00:54]} Re2 {[%emt 0:00:58]} 28. R3d2 {[%emt 0:00:32]} Rxd2 {[%emt 0:01:00]} 29. Qxd2 {[%emt 0:00:28]} Qb3 {[%emt 0:03:52]} 30. Qd6 {[%emt 0:02:17]} Kg7 {[%emt 0:01:05]} 31. Be6 {[%emt 0:05:12]} Qb8 {[%emt 0:00:03]} 32. Qxc6 {[%emt 0:00:16]} Bxc3 {[%emt 0:01:30]} 33. Qxc3+ {[%emt 0:00:03]} Nf6 {[%emt 0:00:07]} 34. Bg4 {[%emt 0:01:45]} Rf7 {[%emt 0:01:32]} 35. Bxf3 {[%emt 0:00:34]} h5 {[%emt 0:00:15]} 36. h4 {[%emt 0:00:17]} Kh7 {[%emt 0:00:36]} 37. Kg2 {[%emt 0:00:57]} Qb6 {[%emt 0:00:47]} 38. Qd4 {[%emt 0:00:59]} Qb3 {[%emt 0:00:58]} 39. Bd5 {[%emt 0:03:22]} Nxd5 {[%emt 0:00:04]} 40. Qxd5 {[%emt 0:00:00]} Qxd5+ {[%emt 0:00:00]} 41. Rxd5 {[%emt 0:00:04]} Rb7 {[%emt 0:00:22]} 42. Rd6 {[%emt 0:00:38]} Rxb2 {[%emt 0:03:22]} 43. Rxa6 {[%emt 0:00:03]} Ra2 {[%emt 0:00:34]} 44. Kf3 {[%emt 0:00:07]} Kg7 {[%emt 0:00:11]} 45. Ke3 {[%emt 0:00:05]} Ra3+ {[%emt 0:00:31]} 46. Kf4 {[%emt 0:00:04]} Rc3 {[%emt 0:02:57]} 47. Re6 {[%emt 0:00:42]} Kf7 {[%emt 0:01:25]} 48. Re4 {[%emt 0:00:06]} Kf6 {[%emt 0:01:05]} 49. Rb4 {[%emt 0:00:51]} Rd3 {[%emt 0:01:19]} 50. Ke4 {[%emt 0:01:38]} Ra3 {[%emt 0:00:20]} 51. Kd5 {[%emt 0:01:00]} Rd3+ {[%emt 0:00:37]} 52. Rd4 {[%emt 0:00:07]} Rc3 {[%emt 0:00:21]} 53. Rf4+ {[%emt 0:00:14]} Ke7 {[%emt 0:00:32]} 54. Rc4 {[%emt 0:02:38]} Rd3+ {[%emt 0:05:30]} 55. Ke5 {[%emt 0:05:17]} Rf3 {[%emt 0:01:09]} 56. Rc7+ {[%emt 0:00:23]} Kf8 {[%emt 0:00:45]} 57. Rc2 {[%emt 0:00:15]} Ke7 {[%emt 0:01:03]} 58. Ra2 {[%emt 0:00:14]} Rf5+ {[%emt 0:00:02]} 59. Ke4 1-0

[Event "55th Rubinstein Memorial-A 2019"]
[Site "Polanica-Zdroj"]
[Date "2019.08.22"]
[Round "6.3"]
[White "Goluch, Piotr"]
[Black "Kucza, Karol"]
[Result "1-0"]
[ECO "E10"]
[WhiteElo "2418"]
[BlackElo "2296"]
[Annotator "NA"]
[PlyCount "61"]
[EventDate "2019.08.17"]
[EventType "swiss"]
[EventCountry "POL"]
[SourceTitle "playchess.com"]
[Source "ChessBase"]
[SourceQuality "1"]
[TimeControl "40/5400+30:1800+30"]

1. d4 {[%emt 0:00:00]} Nf6 {[%emt 0:00:00]} 2. c4 {[%emt 0:00:00]} e6 {[%emt 0:00:00]} 3. Nf3 {[%emt 0:00:11]} d5 {[%emt 0:01:19]} 4. g3 {[%emt 0:00:04]} Bb4+ {[%emt 0:00:34]} 5. Bd2 {[%emt 0:00:05]} Be7 {[%emt 0:00:06]} 6. Bg2 {[%emt 0:00:39]} O-O {[%emt 0:00:12]} 7. O-O {[%emt 0:00:17]} Nbd7 {[%emt 0:00:11]} 8. Qc2 {[%emt 0:00:43]} c6 {[%emt 0:00:13]} 9. Bf4 {[%emt 0:00:05]} b6 {[%emt 0:00:14]} 10. Rd1 {[%emt 0:02:28]} Ba6 {[%emt 0:00:51]} 11. Ne5 {[%emt 0:01:38]} Nxe5 {[%emt 0:05:03]} 12. dxe5 {[%emt 0:00:01]} Nd7 {[%emt 0:00:08]} 13. cxd5 {[%emt 0:00:05]} cxd5 {[%emt 0:00:12]} 14. e4 {[%emt 0:00:09]} Rc8 {[%emt 0:27:41]} 15. Nc3 {[%emt 0:00:04]} Bb4 {[%emt 0:15:43]} 16. exd5 {[%emt 0:00:44]} exd5 {[%emt 0:00:56]} 17. Qf5 {[%emt 0:04:08]} Bxc3 {[%emt 0:06:39]} 18. bxc3 {[%emt 0:00:04]} Qe7 {[%emt 0:02:22]} 19. Bxd5 {[%emt 0:12:13]} Nc5 {[%emt 0:02:30]} 20. Bg5 {[%emt 0:00:23]} Qc7 {[%emt 0:02:39]} 21. Bf6 {[%emt 0:16:02]} gxf6 {[%emt 0:05:04]} 22. exf6 {[%emt 0:08:04]} Kh8 {[%emt 0:00:24]} 23. Rd4 {[%emt 0:00:04]} Rg8 {[%emt 0:05:04]} 24. Rh4 {[%emt 0:12:28]} Rg6 {[%emt 0:00:06]} 25. Qh3 {[%emt 0:00:49]} Rxg3+ {[%emt 0:01:32]} 26. hxg3 {[%emt 0:00:24]} Bd3 {[%emt 0:00:04]} 27. Re1 {[%emt 0:01:24]} Ne6 {[%emt 0:02:34]} 28. Be4 {[%emt 0:04:27]} Bxe4 {[%emt 0:00:27]} 29. Rexe4 {[%emt 0:00:02]} Ng5 {[%emt 0:00:07]} 30. Rxh7+ {[%emt 0:00:03]} Nxh7 {[%emt 0:00:07]} 31. Rh4 {[%emt 0:00:03]} 1-0

[Event "55th Rubinstein Memorial-A 2019"]
[Site "Polanica-Zdroj"]
[Date "2019.08.22"]
[Round "6.4"]
[White "Kosakowski, Jakub"]
[Black "Zych, Marek"]
[Result "1-0"]
[ECO "A05"]
[WhiteElo "2401"]
[BlackElo "2061"]
[Annotator "NA"]
[PlyCount "101"]
[EventDate "2019.08.17"]
[EventType "swiss"]
[EventCountry "POL"]
[SourceTitle "playchess.com"]
[Source "ChessBase"]
[SourceQuality "1"]
[TimeControl "40/5400+30:1800+30"]

1. Nf3 {[%emt 0:00:18]} Nf6 {[%emt 0:00:00]} 2. c4 {[%emt 0:00:09]} g6 {[%emt 0:00:17]} 3. Nc3 {[%emt 0:00:12]} d5 {[%emt 0:00:13]} 4. cxd5 {[%emt 0:00:24]} Nxd5 {[%emt 0:00:01]} 5. e4 {[%emt 0:08:37]} Nxc3 {[%emt 0:00:14]} 6. dxc3 {[%emt 0:00:05]} Qxd1+ {[%emt 0:00:13]} 7. Kxd1 {[%emt 0:00:05]} f6 {[%emt 0:00:38]} 8. Kc2 {[%emt 0:00:16]} e5 {[%emt 0:01:05]} 9. Nd2 {[%emt 0:02:21]} Bc5 {[%emt 0:01:13]} 10. f3 {[%emt 0:00:10]} Be6 {[%emt 0:02:05]} 11. a4 {[%emt 0:04:15]} Be3 {[%emt 0:01:04]} 12. a5 {[%emt 0:01:07]} Kf7 {[%emt 0:13:54]} 13. Be2 {[%emt 0:02:45]} a6 {[%emt 0:06:41]} 14. Nc4 {[%emt 0:02:35]} Bxc1 {[%emt 0:02:33]} 15. Rhxc1 {[%emt 0:00:06]} Rd8 {[%emt 0:04:27]} 16. Ne3 {[%emt 0:00:13]} Ke7 {[%emt 0:01:35]} 17. b4 {[%emt 0:03:20]} c6 {[%emt 0:08:40]} 18. g3 {[%emt 0:05:24]} Nd7 {[%emt 0:02:30]} 19. Rf1 {[%emt 0:03:37]} Rf8 {[%emt 0:02:55]} 20. c4 {[%emt 0:15:16]} Rac8 {[%emt 0:01:07]} 21. c5 {[%emt 0:00:17]} Rfd8 {[%emt 0:01:22]} 22. f4 {[%emt 0:03:35]} exf4 {[%emt 0:01:07]} 23. gxf4 {[%emt 0:00:07]} Nf8 {[%emt 0:03:27]} 24. Kc3 {[%emt 0:03:08]} Bf7 {[%emt 0:02:09]} 25. Bg4 {[%emt 0:02:00]} Rb8 {[%emt 0:00:55]} 26. Rae1 {[%emt 0:02:01]} Be6 {[%emt 0:08:12]} 27. f5 {[%emt 0:03:00]} Bg8 {[%emt 0:02:11]} 28. e5 {[%emt 0:01:00]} fxe5 {[%emt 0:00:58]} 29. f6+ {[%emt 0:00:25]} Ke8 {[%emt 0:01:46]} 30. Nc4 {[%emt 0:08:32]} Bxc4 {[%emt 0:01:28]} 31. Rxe5+ {[%emt 0:00:06]} Be6 {[%emt 0:00:35]} 32. Bxe6 {[%emt 0:00:12]} Nxe6 {[%emt 0:00:02]} 33. Rxe6+ {[%emt 0:00:05]} Kf7 {[%emt 0:01:44]} 34. Re7+ {[%emt 0:00:06]} Kg8 {[%emt 0:00:05]} 35. Rfe1 {[%emt 0:01:30]} Rf8 {[%emt 0:01:00]} 36. Rg7+ {[%emt 0:00:20]} Kh8 {[%emt 0:00:03]} 37. Ree7 {[%emt 0:00:14]} Rxf6 {[%emt 0:00:26]} 38. Rxh7+ {[%emt 0:00:04]} Kg8 {[%emt 0:00:05]} 39. Reg7+ {[%emt 0:00:04]} Kf8 {[%emt 0:00:08]} 40. Rxb7 {[%emt 0:00:00]} Rxb7 {[%emt 0:00:00]} 41. Rxb7 {[%emt 0:00:10]} Rf3+ {[%emt 0:01:11]} 42. Kc4 {[%emt 0:00:06]} Rf4+ {[%emt 0:00:44]} 43. Kb3 {[%emt 0:00:05]} Rh4 {[%emt 0:00:14]} 44. Rb6 {[%emt 0:00:05]} Rh3+ {[%emt 0:02:34]} 45. Ka4 {[%emt 0:00:03]} Rxh2 {[%emt 0:02:51]} 46. Rxa6 {[%emt 0:00:07]} g5 {[%emt 0:00:19]} 47. Rxc6 {[%emt 0:00:05]} Kf7 {[%emt 0:00:12]} 48. Rd6 {[%emt 0:00:44]} g4 {[%emt 0:00:12]} 49. Rd3 {[%emt 0:00:00]} Ke6 {[%emt 0:00:49]} 50. Kb5 {[%emt 0:00:03]} Rh3 {[%emt 0:00:12]} 51. Rd1 {[%emt 0:00:24] Kd5} 1-0

[Event "55th Rubinstein Memorial-A 2019"]
[Site "Polanica-Zdroj"]
[Date "2019.08.22"]
[Round "6.5"]
[White "Oglaza, Oskar"]
[Black "Jaroch, Karol"]
[Result "1/2-1/2"]
[ECO "C18"]
[WhiteElo "2367"]
[BlackElo "2231"]
[Annotator "NA"]
[PlyCount "62"]
[EventDate "2019.08.17"]
[EventType "swiss"]
[EventCountry "POL"]
[SourceTitle "playchess.com"]
[Source "ChessBase"]
[SourceQuality "1"]
[TimeControl "40/5400+30:1800+30"]

1. e4 {[%emt 0:00:00]} e6 {[%emt 0:00:00]} 2. d4 {[%emt 0:00:00]} d5 {[%emt 0:00:00]} 3. Nc3 {[%emt 0:00:00]} Bb4 {[%emt 0:00:00]} 4. e5 {[%emt 0:00:00]} c5 {[%emt 0:00:00]} 5. a3 {[%emt 0:00:00]} Bxc3+ {[%emt 0:00:00]} 6. bxc3 {[%emt 0:00:00]} Ne7 {[%emt 0:00:01]} 7. Qg4 {[%emt 0:00:02]} Kf8 {[%emt 0:03:36]} 8. Qd1 {[%emt 0:00:37]} Qc7 {[%emt 0:04:54]} 9. Nf3 {[%emt 0:05:11]} Bd7 {[%emt 0:03:54]} 10. Bd3 {[%emt 0:06:43]} Ba4 {[%emt 0:19:10]} 11. O-O {[%emt 0:03:43]} h6 {[%emt 0:00:14]} 12. h4 {[%emt 0:04:37]} Nd7 {[%emt 0:02:56]} 13. h5 {[%emt 0:06:00]} Rc8 {[%emt 0:00:59]} 14. Ra2 {[%emt 0:01:02]} Qa5 {[%emt 0:16:45]} 15. Bd2 {[%emt 0:04:53]} Qb6 {[%emt 0:00:53]} 16. Be3 {[%emt 0:15:21]} Qa5 {[%emt 0:07:23]} 17. Qb1 {[%emt 0:01:30]} c4 {[%emt 0:19:20]} 18. Be2 {[%emt 0:00:09]} Ke8 {[%emt 0:03:53]} 19. Qe1 {[%emt 0:11:21]} Kd8 {[%emt 0:01:09]} 20. Nh4 {[%emt 0:02:19]} Kc7 {[%emt 0:00:20]} 21. f4 {[%emt 0:02:50]} g6 {[%emt 0:00:14]} 22. hxg6 {[%emt 0:09:11]} fxg6 {[%emt 0:00:03]} 23. Bg4 {[%emt 0:05:20]} Qb6 {[%emt 0:01:57]} 24. Bh3 {[%emt 0:10:00]} Rcg8 {[%emt 0:00:35]} 25. Nf3 {[%emt 0:03:16]} Nf8 {[%emt 0:01:56]} 26. g4 {[%emt 0:00:54]} h5 {[%emt 0:03:03]} 27. g5 {[%emt 0:06:09]} Nf5 {[%emt 0:00:41]} 28. Bf2 {[%emt 0:00:18]} Rh7 {[%emt 0:01:55]} 29. Nd2 {[%emt 0:01:13]} Qa5 {[%emt 0:02:38]} 30. Nf3 {[%emt 0:01:00]} Qb6 {[%emt 0:02:25]} 31. Nd2 {[%emt 0:00:30]} Qa5 {[%emt 0:02:12]} 1/2-1/2

[Event "55th Rubinstein Memorial-A 2019"]
[Site "Polanica-Zdroj"]
[Date "2019.08.22"]
[Round "6.6"]
[White "Luba, Lukasz"]
[Black "Lewtak, Damian"]
[Result "0-1"]
[ECO "A45"]
[WhiteElo "2130"]
[BlackElo "2354"]
[Annotator "NA"]
[PlyCount "68"]
[EventDate "2019.08.17"]
[EventType "swiss"]
[EventCountry "POL"]
[SourceTitle "playchess.com"]
[Source "ChessBase"]
[SourceQuality "1"]
[TimeControl "40/5400+30:1800+30"]

1. d4 {[%emt 0:00:00]} Nf6 {[%emt 0:00:00]} 2. e3 {[%emt 0:00:00]} d6 {[%emt 0:00:28]} 3. Nf3 {[%emt 0:00:14]} g6 {[%emt 0:00:21]} 4. Bb5+ {[%emt 0:00:45]} Nbd7 {[%emt 0:06:14]} 5. Bc4 {[%emt 0:00:08]} e6 {[%emt 0:02:03]} 6. c3 {[%emt 0:03:01]} Bg7 {[%emt 0:01:26]} 7. Nbd2 {[%emt 0:00:58]} O-O {[%emt 0:00:45]} 8. h3 {[%emt 0:03:58]} Qe7 {[%emt 0:03:57]} 9. g4 {[%emt 0:08:04]} d5 {[%emt 0:00:25]} 10. Bb3 {[%emt 0:01:55]} c6 {[%emt 0:06:06]} 11. Ne5 {[%emt 0:04:21]} Nxe5 {[%emt 0:02:14]} 12. dxe5 {[%emt 0:00:06]} Nd7 {[%emt 0:00:07]} 13. f4 {[%emt 0:03:03]} f6 {[%emt 0:06:00]} 14. exf6 {[%emt 0:02:36]} Nxf6 {[%emt 0:00:49]} 15. Qe2 {[%emt 0:02:13]} e5 {[%emt 0:03:40]} 16. f5 {[%emt 0:07:51]} gxf5 {[%emt 0:01:27]} 17. g5 {[%emt 0:00:09]} Ne4 {[%emt 0:01:39]} 18. Rg1 {[%emt 0:05:18]} Nxg5 {[%emt 0:06:33]} 19. Qh5 {[%emt 0:03:46]} Ne4 {[%emt 0:02:14]} 20. Nf3 {[%emt 0:01:20]} Bd7 {[%emt 0:14:37]} 21. Ng5 {[%emt 0:08:08]} Nxg5 {[%emt 0:00:10]} 22. Qxg5 {[%emt 0:03:48]} Qxg5 {[%emt 0:00:06]} 23. Rxg5 {[%emt 0:00:04]} Be6 {[%emt 0:00:59]} 24. Ke2 {[%emt 0:00:18]} Rf6 {[%emt 0:00:32]} 25. Bd2 {[%emt 0:03:15]} Rg6 {[%emt 0:00:06]} 26. h4 {[%emt 0:00:04]} Bf6 {[%emt 0:00:15]} 27. Rxg6+ {[%emt 0:01:11]} hxg6 {[%emt 0:00:06]} 28. Rg1 {[%emt 0:00:13]} Kf7 {[%emt 0:00:07]} 29. e4 {[%emt 0:00:07]} dxe4 {[%emt 0:01:32]} 30. Bxe6+ {[%emt 0:00:18]} Kxe6 {[%emt 0:00:04]} 31. Rxg6 {[%emt 0:00:07]} f4 {[%emt 0:00:06]} 32. Be1 {[%emt 0:00:33]} Rh8 {[%emt 0:00:14]} 33. c4 {[%emt 0:00:50]} Kf5 {[%emt 0:00:10]} 34. Rg1 {[%emt 0:01:20]} Bxh4 {[%emt 0:00:10]} 0-1

[Event "55th Rubinstein Memorial-A 2019"]
[Site "Polanica-Zdroj"]
[Date "2019.08.22"]
[Round "6.7"]
[White "Kozak, Antoni"]
[Black "Domanski, Lukasz"]
[Result "1/2-1/2"]
[ECO "D22"]
[WhiteElo "2354"]
[BlackElo "2058"]
[Annotator "NA"]
[PlyCount "62"]
[EventDate "2019.08.17"]
[EventType "swiss"]
[EventCountry "POL"]
[SourceTitle "playchess.com"]
[Source "ChessBase"]
[SourceQuality "1"]
[TimeControl "40/5400+30:1800+30"]

1. d4 {[%emt 0:00:00]} d5 {[%emt 0:00:06]} 2. c4 {[%emt 0:00:00]} dxc4 {[%emt 0:00:03]} 3. Nf3 {[%emt 0:00:00]} a6 {[%emt 0:00:05]} 4. e3 {[%emt 0:08:44]} b5 {[%emt 0:00:20]} 5. a4 {[%emt 0:00:06]} Bb7 {[%emt 0:00:04]} 6. axb5 {[%emt 0:00:47]} axb5 {[%emt 0:00:15]} 7. Rxa8 {[%emt 0:00:03]} Bxa8 {[%emt 0:00:08]} 8. b3 {[%emt 0:00:03]} Nf6 {[%emt 0:01:12]} 9. bxc4 {[%emt 0:00:16]} bxc4 {[%emt 0:00:13]} 10. Ba3 {[%emt 0:09:44]} Nbd7 {[%emt 0:05:20]} 11. Bxc4 {[%emt 0:01:57]} e6 {[%emt 0:09:15]} 12. Bxf8 {[%emt 0:05:29]} Nxf8 {[%emt 0:00:24]} 13. Nbd2 {[%emt 0:02:32]} N8d7 {[%emt 0:04:34]} 14. Qc2 {[%emt 0:02:07]} c5 {[%emt 0:09:35]} 15. dxc5 {[%emt 0:00:05]} Nxc5 {[%emt 0:03:25]} 16. Bb5+ {[%emt 0:00:06]} Ncd7 {[%emt 0:00:11]} 17. Qc5 {[%emt 0:02:33]} Qe7 {[%emt 0:01:36]} 18. Qc8+ {[%emt 0:00:02]} Qd8 {[%emt 0:00:14]} 19. Qc5 {[%emt 0:00:03]} Qe7 {[%emt 0:00:08]} 20. Qc8+ {[%emt 0:00:03]} Qd8 {[%emt 0:00:07]} 21. Qxd8+ {[%emt 0:00:02]} Kxd8 {[%emt 0:00:10]} 22. Ke2 {[%emt 0:00:06]} Ke7 {[%emt 0:00:47]} 23. Ra1 {[%emt 0:00:08]} Rb8 {[%emt 0:02:54]} 24. Ra5 {[%emt 0:00:19]} Bd5 {[%emt 0:03:37]} 25. Bxd7 {[%emt 0:00:26]} Bxf3+ {[%emt 0:02:43]} 26. Nxf3 {[%emt 0:00:14]} Nxd7 {[%emt 0:00:38]} 27. Ra7 {[%emt 0:00:04]} Rb2+ {[%emt 0:00:30]} 28. Nd2 {[%emt 0:00:26]} Kd6 {[%emt 0:03:32]} 29. Kd3 {[%emt 0:00:15]} Nc5+ {[%emt 0:01:44]} 30. Kc3 {[%emt 0:00:09]} Rb7 {[%emt 0:00:51]} 31. Rxb7 {[%emt 0:02:32]} Ke5 1/2-1/2